Cogmind - Beta 13 @@@ ROGUE MODE // 2024.06.26 @ 01:19:15 Player: Attma Result: Destroyed by G-47 Trooper with Particle Gun Performance ------------- Evolutions (0) 0 Regions Visited (4) 800 Robots Destroyed (31) 155 Value Destroyed (853) 853 Prototype IDs (2) 40 Alien Tech Used (0) 0 Bonus (300) 300 TOTAL SCORE: 2148 Bonus ------- Aligned with FarCom 300 Cogmind --------- Core Integrity 0/250 Matter 292/300 Energy 130/150 System Corruption 0% Temperature Warm (114) Movement Rolling (155) Ox5 Location -9/Mines Parts ------- > --- POWER (1) -------- Light Angular Momentum Engine > --- PROPULSION (2) --- Wheel > --- UTILITY (2) ------ High-capacity Storage Unit Skeleton Box > --- WEAPON (2) ------- Ion Cannon Light Cannon > --- INVENTORY (20) --- Ion Engine Aluminum Leg Aluminum Leg Improved Heat Sink Large Storage Unit High-capacity Storage Unit Large Battery (200) Compact Matter Pod (147) Sensor Array Experimental Sensor Array Advanced Targeting Computer Cloak of Protection Light Assault Rifle Autogun Autogun Autogun Grenade Launcher Rocket Launcher Improved Datajack Longsword +1 Peak State ------------ > --- POWER ------------ Light Angular Momentum Engine > --- PROPULSION ------- Wheel Wheel > --- UTILITY ---------- High-capacity Storage Unit Cloak of Protection > --- WEAPON ----------- Ion Cannon Light Cannon > --- INVENTORY -------- Ion Engine Aluminum Leg Aluminum Leg Improved Heat Sink Large Storage Unit High-capacity Storage Unit Large Battery Compact Matter Pod Sensor Array Advanced Targeting Computer Skeleton Box Light Assault Rifle Autogun Autogun Autogun Grenade Launcher Rocket Launcher Improved Datajack Longsword +1 [Rating: 24] Favorites ----------- Power Light Nuclear Core Engine Light Angular Momentum Engine Power Core Light Nuclear Core Propulsion Wheel Wheel Wheel Utility Large Storage Unit Device Skeleton Box Storage Large Storage Unit Processor Signal Interpreter Protection Light Armor Plating Weapon Autogun Energy Cannon Ion Cannon Ballistic Gun Autogun Ballistic Cannon Light Cannon Launcher Grenade Launcher Build | -11 -10 -10 -10 -9 ------- Run | Yrd Mat Min Exi Min Slots Evolved . | . . . . . Power . | . . . . . Propulsion . | . . . . . Utility . | . . . . . Weapon . | . . . . . Parts Attached 33 | 5 19 6 3 . Power 3 | 1 1 1 . . Engine 2 | 1 . 1 . . Core 1 | . 1 . . . Reactor . | . . . . . Propulsion 5 | 2 2 1 . . Treads . | . . . . . Leg . | . . . . . Wheel 5 | 2 2 1 . . Hover . | . . . . . Flight . | . . . . . Utility 11 | . 7 1 3 . Device 3 | . 1 . 2 . Storage 5 | . 3 1 1 . Processor 1 | . 1 . . . Hackware . | . . . . . Protection 2 | . 2 . . . Artifact . | . . . . . Weapon 14 | 2 9 3 . . Energy Gun . | . . . . . Energy Cannon 1 | . . 1 . . Ballistic Gun 10 | 2 7 1 . . Ballistic Cannon 1 | . . 1 . . Launcher 2 | . 2 . . . Special Weapon . | . . . . . Impact Weapon . | . . . . . Slashing Weapon . | . . . . . Piercing Weapon . | . . . . . Special Melee Weapon . | . . . . . Unidentified Prototypes 2 | . . . 2 . Parts Lost 5 | . 4 . . 1 Power 1 | . 1 . . . Propulsion 2 | . 1 . . 1 Utility 1 | . 1 . . . Weapon 1 | . 1 . . . Highest Loss Streak 2 | . 2 . . 1 To Critical Strikes . | . . . . . Average Slot Usage (%) 94 | . 93 90 100 99 Engine 7 | . 7 2 14 14 Core 6 | . 6 11 . . Wheel 24 | . 25 19 28 27 Device 2 | . 1 . 2 14 Storage 21 | . 16 28 25 14 Protection 2 | . 6 . . . Energy Cannon 4 | . . 2 14 14 Ballistic Gun 18 | . 27 23 . . Ballistic Cannon 4 | . . 2 14 14 Naked Turns . | . . . . . Heaviest Build 60 | 7 33 39 60 60 Greatest Support 26 | 20 26 20 20 20 Greatest Overweight (x) 3 | . 3 3 2 2 Average Overweight (x) 1 | . 1 2 1 2 Largest Inventory Capacity 20 | 5 15 15 20 20 Average Capacity 15 | 5 13 15 19 20 Most Carried 20 | 4 15 15 19 20 Average Carried 14 | 2 11 14 16 19 Final Capacity 20 | 5 15 15 20 20 Final Carried 20 | 3 15 15 19 20 Class Distribution -------------------- 100% | Mutant Dominant Class ---------------- Mutant | -10/Materials Mutant | -10/Mines Mutant | -10/Exiles Mutant | -9/Mines Resources | -11 -10 -10 -10 -9 ----------- Run | Yrd Mat Min Exi Min Matter Collected 1296 | 258 522 490 . 26 Remotely . | . . . . . Salvage Created 1179 | 44 676 426 . 33 Parts 65 | 1 41 21 . 2 Haulers Intercepted 2 | . 2 . . . Recyclers Shooed . | . . . . . Parts Field Recycled . | . . . . . Retrieved Matter . | . . . . . Parts Self-Destructed . | . . . . . Prevented . | . . . . . Kills | -11 -10 -10 -10 -9 ------- Run | Yrd Mat Min Exi Min Combat Hostiles Destroyed 23 | 1 13 8 . 1 Guns 18 | 1 10 7 . . Cannons 2 | . . 1 . 1 AOE 3 | . 3 . . . Classes Destroyed 6 | 1 2 3 . . Worker 1 | . . 1 . . Hauler 2 | . 2 . . . Recycler 2 | . . 2 . . Watcher 3 | . 3 . . . Swarmer 3 | . . 3 . . Grunt 20 | 1 13 5 . 1 Best Kill Streak 6 | 1 3 6 . 1 Combat Bots Only 3 | 1 3 3 . 1 Max Kills in Single Turn 3 | 1 3 2 . 1 Gunslinging 1 | . . 1 . . Exploded 3 | . 3 . . . Melee . | . . . . . Uniques/NPCs Destroyed . | . . . . . Combat | -11 -10 -10 -10 -9 -------- Run | Yrd Mat Min Exi Min Hostile Shots Fired 102 | 3 82 10 . 7 Missed 28 | . 22 4 . 2 Damage Taken 967 | 35 790 75 . 67 Core 252 | . 203 33 . 16 Absorbed by Shields . | . . . . . Core Remaining (%) 100 | 100 . . . . Volleys Fired 98 | 6 69 20 . 3 Largest 2 | 2 2 2 . 2 Hottest 95 | 40 60 95 . 95 Shots Fired 195 | 12 137 40 . 6 Gun 175 | 12 135 28 . . Cannon 18 | . . 12 . 6 Launcher 2 | . 2 . . . Special . | . . . . . Kinetic 184 | 12 135 34 . 3 Thermal 9 | . . 6 . 3 Explosive 2 | . 2 . . . Electromagnetic . | . . . . . Robot Hit Streak 13 | 12 12 13 . 2 Robot Miss Streak 5 | . 5 3 . 5 Penetration Max . | . . . . . Secondary Targets 1 | . . 1 . . Max Gunslinging Chain 1 | . . 1 . . Shots Hit Robots 128 | 12 90 24 . 2 Core Hits 46 | 2 28 14 . 2 Critical Kills . | . . . . . Critical Parts Destroyed . | . . . . . Critical Strikes . | . . . . . Melee Attacks . | . . . . . Impact . | . . . . . Slashing . | . . . . . Piercing . | . . . . . Sneak Attacks . | . . . . . Combat Hostiles . | . . . . . Follow-up Attacks . | . . . . . Damage Inflicted 1947 | 148 1345 413 . 41 Guns 1652 | 148 1188 316 . . Cannons 138 | . . 97 . 41 Explosions 149 | . 149 . . . Melee . | . . . . . Ramming 8 | . 8 . . . Kinetic 1718 | 148 1188 365 . 17 Thermal 72 | . . 48 . 24 Explosive 149 | . 149 . . . Electromagnetic . | . . . . . Impact . | . . . . . Slashing . | . . . . . Piercing . | . . . . . Highest Corruption . | . . . . . Average Corruption . | . . . . . Corruption Purged . | . . . . . Corruption Blocked . | . . . . . Overload Shots . | . . . . . Overflow Damage . | . . . . . Projectiles . | . . . . . Explosions . | . . . . . Melee . | . . . . . Knockbacks 1 | . . . . 1 Impact . | . . . . . Kinetic 1 | . . . . 1 Secondary . | . . . . . Self-Inflicted Damage 29 | . 29 . . . Shots 2 | . 2 . . . Rammed 1 | . 1 . . . Targets Rammed 1 | . 1 . . . Kicked . | . . . . . Crushed . | . . . . . Highest Temperature 105 | . 95 78 . 105 Average Temperature 24 | . 24 22 . 57 Received Heat Transfer 528 | 18 435 39 . 36 Siege Activations . | . . . . . Robots Corrupted . | . . . . . Combat Hostiles . | . . . . . Parts Fried . | . . . . . Impact Corruptions . | . . . . . Robots Melted . | . . . . . Combat Hostiles . | . . . . . Parts Melted . | . . . . . Heat Transferred 111 | . . 74 . 37 Parts Sabotaged . | . . . . . Parts Stolen . | . . . . . Parts Stripped . | . . . . . Power Chain Reactions . | . . . . . Alert | -11 -10 -10 -10 -9 ------- Run | Yrd Mat Min Exi Min Peak Influence 229 | 20 229 145 . . Initial 45 | . 13 45 . . Average 60 | 4 89 52 . . Maximum Alert Level 1 | . 1 . . . Low Security (%) 99 | 100 97 100 . 100 Level 1 . | . 2 . . . Level 2 . | . . . . . Level 3 . | . . . . . Level 4 . | . . . . . Level 5 . | . . . . . High Security . | . . . . . Max Security . | . . . . . Squads Dispatched 5 | . 4 1 . . Investigation 3 | . 2 1 . . Extermination . | . . . . . Reinforcement 2 | . 2 . . . Assault . | . . . . . Garrison . | . . . . . Intercept . | . . . . . Searches Triggered . | . . . . . Construction Impeded . | . . . . . Haulers Reinforced . | . . . . . Active Scanning Responses . | . . . . . Cargo Convoy Interrupts . | . . . . . Stealth | -11 -10 -10 -10 -9 --------- Run | Yrd Mat Min Exi Min Distress Signals 2 | . 2 . . . Communications Jammed . | . . . . . Distress Signals . | . . . . . Times Spotted 34 | 1 23 8 . 2 Peak Tracking Total 3 | 1 3 2 . 2 Tactical Retreats 3 | . 3 . . . Traps | -11 -10 -10 -10 -9 ------- Run | Yrd Mat Min Exi Min Traps Triggered 3 | . 3 . . . Indirectly . | . . . . . Trap Hack Attempts . | . . . . . Triggered . | . . . . . Disarmed . | . . . . . Reprogrammed . | . . . . . Reused . | . . . . . Traps Extracted . | . . . . . Installed . | . . . . . Triggered . | . . . . . Machines | -11 -10 -10 -10 -9 ---------- Run | Yrd Mat Min Exi Min Machines Disabled . | . . . . . Max in Single Turn . | . . . . . Machines Repaired . | . . . . . Machines Dismantled . | . . . . . Machines Sabotaged . | . . . . . Overloaded Fab Kills . | . . . . . Hacking | -11 -10 -10 -10 -9 --------- Run | Yrd Mat Min Exi Min Machines Accessed 12 | . 8 1 3 . Terminals 7 | . 7 . . . Fabricators . | . . . . . Repair Stations . | . . . . . Recycling Units 1 | . 1 . . . Scanalyzers . | . . . . . Garrison Access . | . . . . . Total Hacks 25 | . 19 1 5 . Successful 11 | . 5 1 5 . Failed 14 | . 14 . . . Catastrophic 1 | . 1 . . . Database Lockouts . | . . . . . Manual 2 | . . . 2 . Terminals 18 | . 18 . . . Fabricators . | . . . . . Repair Stations . | . . . . . Recycling Units 1 | . 1 . . . Scanalyzers . | . . . . . Garrison Access . | . . . . . Terminal Hacks 10 | . 4 1 5 . Record 5 | . . . 5 . Open Door 1 | . . 1 . . Emergency Access Points 1 | . 1 . . . Locate Traps 1 | . 1 . . . Investigation Status 1 | . 1 . . . Zone Layout 1 | . 1 . . . Fabricator Hacks . | . . . . . Repair Station Hacks . | . . . . . Recycling Unit Hacks 1 | . 1 . . . Report Inventory 1 | . 1 . . . Scanalyzer . | . . . . . Garrison Access Hacks . | . . . . . Unauthorized Hacks . | . . . . . Terminals . | . . . . . Fabricators . | . . . . . Repair Stations . | . . . . . Recycling Units . | . . . . . Scanalyzers . | . . . . . Garrison Access . | . . . . . Data Cores Recovered . | . . . . . Used . | . . . . . Hacking Detections 6 | . 6 . . . Full Trace Events . | . . . . . Feedback Events . | . . . . . Feedback Blocked . | . . . . . Robot Schematics Acquired . | . . . . . Robots Built . | . . . . . Authchips . | . . . . . Time . | . . . . . Total Robot Build Rating . | . . . . . Part Schematics Acquired . | . . . . . Parts Built . | . . . . . Authchips . | . . . . . Time . | . . . . . Total Part Build Rating . | . . . . . Parts Repaired . | . . . . . Time . | . . . . . Parts Recycled . | . . . . . Recycled Matter . | . . . . . Retrieved Matter . | . . . . . Retrieved Components . | . . . . . Parts Scanalyzed . | . . . . . Part Schematics Acquired . | . . . . . Parts Damaged . | . . . . . Bothacking | -11 -10 -10 -10 -9 ------------ Run | Yrd Mat Min Exi Min Used RIF Installer . | . . . . . Robots Hacked . | . . . . . Non-combat . | . . . . . Combat . | . . . . . Robot Hacks Applied . | . . . . . Relay Couplers Released . | . . . . . Fabnet Peak Effective % . | . . . . . Robots Rewired . | . . . . . Allies Hacked . | . . . . . Hacks Repelled . | . . . . . Allies | -11 -10 -10 -10 -9 -------- Run | Yrd Mat Min Exi Min Total Allies . | . . . . . Largest Group . | . . . . . Highest-Rated Group . | . . . . . Highest-Rated Ally . | . . . . . Total Orders . | . . . . . Ally Attacks . | . . . . . Total Damage . | . . . . . Kills . | . . . . . Allies Corrupted . | . . . . . Allies Melted . | . . . . . Intel | -11 -10 -10 -10 -9 ------- Run | Yrd Mat Min Exi Min Robot Analysis Total . | . . . . . Derelict Logs Recovered 5 | . . 3 . 2 Drone Launches . | . . . . . Drone Recoveries . | . . . . . Exploration | -11 -10 -10 -10 -9 ------------- Run | Yrd Mat Min Exi Min Turns Passed 3361 | 89 1272 1082 551 367 Spaces Moved 2711 | 85 896 897 506 327 Core 33 | 33 . . . . Treads . | . . . . . Legs . | . . . . . Wheels 2678 | 52 896 897 506 327 Hover . | . . . . . Flight . | . . . . . Fastest Speed 50 | 50 80 95 95 110 Average Speed 106 | 68 104 111 107 110 Slowest Speed 125 | 80 125 125 110 110 Overloaded Moves . | . . . . . Propulsion Burnouts . | . . . . . Robots Hopped . | . . . . . Cave-ins Triggered . | . . . . . Exploration Rate (%) 70 | 7 87 97 92 69 Regions Visited 4 Branch Regions 3 Pre-discovered Areas 2 | . . 2 . . Known Exits Taken . | . . . . . Unknown Exits Taken 4 | 1 1 1 1 . Scrap Searched 2 | . . 1 . 1 Spaces Dug . | . . . . . Terrain Destroyed 15 | . 14 1 . . Melee . | . . . . . Projectile 1 | . . 1 . . AOE 14 | . 14 . . . Terrain Rammed . | . . . . . Walls Destroyed . | . . . . . Machines Disabled . | . . . . . Actions | -11 -10 -10 -10 -9 --------- Run | Yrd Mat Min Exi Min Total 2997 | 103 1105 945 513 331 Wait 90 | . 81 9 . . Move 2707 | 84 895 896 505 327 Hop . | . . . . . Pick Up 48 | 8 29 6 4 1 Fast Attach 1 | . . 1 . . Attach 14 | 5 9 . . . Detach . | . . . . . Swap 18 | . 10 5 3 . Drop 20 | . 11 8 1 . Fire 98 | 6 69 20 . 3 Melee . | . . . . . Ram 1 | . 1 . . . Kick . | . . . . . Crush . | . . . . . Escape Stasis . | . . . . . Rewire . | . . . . . Trap . | . . . . . Miscellaneous . | . . . . . Route ------- -11/Scrapyard -10/Materials (discovered 6 exits: [*Mat x3] / *Min x2 / *Sub) -10/Mines (discovered 4 exits: [*Mat x2] / *Exi / Sub) -10/Exiles (discovered 2 exits: [*Min x2]) -9/Mines History --------- Turn | Location | Event 2 | -11/Scrapyard | Met Revision 17 56 | -11/Scrapyard | Discovered new exit (range 8) 90 | -11/Scrapyard | Entered Materials 314 | -10/Materials | Build established: Mutant 436 | -10/Materials | Discovered new exit (range 3) 562 | -10/Materials | Discovered new exit (range 5) 647 | -10/Materials | Discovered new exit (range 15) 1090 | -10/Materials | Discovered new exit (range 15) 1117 | -10/Materials | Core integrity fell below 50% 1154 | -10/Materials | Discovered new exit (range 4) 1269 | -10/Materials | Core integrity fell below 20% 1298 | -10/Materials | Discovered new exit (range 8) 1362 | -10/Materials | Entered Mines 1530 | -10/Mines | Received a Rocket Launcher from a helpful Derelict 1565 | -10/Mines | Learned 4 Materials zone layouts 1808 | -10/Mines | Identified exit to Subcaves 1854 | -10/Mines | Met a Derelict shopkeep closing up shop 1942 | -10/Mines | Deemed a non-threat by the Exiles lab entrance 1943 | -10/Mines | Discovered new exit (range 5) 2098 | -10/Mines | Learned location of Storage (-8) 2175 | -10/Mines | Discovered new exit (range 10) 2281 | -10/Mines | Discovered new exit (range 8) 2444 | -10/Mines | Entered Exiles 2460 | -10/Exiles | Discovered new exit (range 15) 2479 | -10/Exiles | Met 8R-AWN 2495 | -10/Exiles | Met EX-HEX 2556 | -10/Exiles | Met EX-DEC 2635 | -10/Exiles | Visited The Gauntlet 2776 | -10/Exiles | Met EX-BIN 2789 | -10/Exiles | Aligned with FarCom system 2790 | -10/Exiles | Given EX-Vault access code 2851 | -10/Exiles | Opened EX-Vault 2864 | -10/Exiles | Found Prototype Device 2868 | -10/Exiles | Found Prototype Slashing Weapon 2870 | -10/Exiles | Found Prototype Device 2881 | -10/Exiles | Identified Cloak of Protection 2883 | -10/Exiles | Identified Skeleton Box 2897 | -10/Exiles | Warned to stay clear of 0b10 Research branches 2902 | -10/Exiles | Exiles lab attacked by MAIN.C 2982 | -10/Exiles | Discovered new exit (range 12) 2995 | -10/Exiles | Stole three prototypes: Skeleton Box, Cloak of Protection, Longsword +1 2995 | -10/Exiles | Entered Mines 3055 | -9/Mines | Learned Materials terminal intel 3255 | -9/Mines | Learned Materials emergency access door positions 3286 | -9/Mines | Found a damaged Exp. Sensor Array with a note attached 3290 | -9/Mines | Found Prototype Device 3362 | -9/Mines | Destroyed by G-47 Trooper with Particle Gun Last Messages --------------- T-07 Excavator is excavating. K-01 Serf collects debris. T-07 Excavator is excavating. Acquired derelict log, extracted data. Data stored: Materials emergency access points. A damaged part is partially visible under some rubble. There's a note attached: "Everyone keeps telling us we should avoid high-traffic areas because that's where patrols are more likely to show up, but that doesn't do us much good if we can't spot those areas until they're on top of us... With this we can! Deliver it to Megawrench for repairs then we'll never be afraid of an ambush while sneaking around Materials again, ha." Acquired Prototype Device. K-01 Serf collects debris. Wheel destroyed. G-47 Trooper knocked back. G-34 Mercenary destroyed. Map ----- +----------------------------------------------------+ | ??????????????????????????????????? #??????? | | ??????????????????????????????????# #??????? | | ????????????????????????????????## #??????? | | ????????????????????????????????# #??????? | | ????????????????????????????????# ##?????? | | ????????????????????????????##### #?????? | | ???????????????????????????## ## #?????? | | ????????????????????# ##### #?????? | | ????????????????????# #?????? | | ????????????????????# ##### ##?????? | | ????????????????????? #???## ##??????? | | ????????????????????? ????# #???????? | | ????????????????????? ????# #?#####?? | | ???????????????????## ?????## #### ### | | ???????????????????# ??????### ### | | ??????????????????? ????????## | | ??????????????????? r ?????????# = # | | ???????????????????# #?????????## [ # | | ???????????????????# #??????????##### ## | | ???????????????????# #??????????????## ## | | ???????????????????# #???????????????# # | | ???????????????????# #???????????????## # | | ???????????????#???# #????????????????## ## | | ???????????????# ??# #?????????????????####? | | ???????????????# ### #?????????????????????? | | ??????????????## #@ #?????????????????????? | | ??????????????# ##????????????????????? | | ??????????????# =% ##??????????????###??? | | ??????????????# g % #????????????## ##?? | | ??????????????## #???????????## #?? | | ???????????????##### ##???????????# #?? | | ???????????????????# ##???????????## #?? | | ??????????????????## t###????????### #?? | | ?????????????????## ##??????## ##?? | | ????????????????## ##?????# ####??? | | ????????????????# ##???## ##?????? | | ???????????????## ## ##### #??????? | | ?????????###??## #### #??????? | | ????????## ### ##?# #??????# | | ???????## #?# ##??????# | | ???##### #?# #####????#### | | ???# ##?# ##???????## #? | | ??# ##??## #????????# #? | | ??# ## #????#### ##????????# #? | | ??? #?#### #???????####?????????# #? | | ???# #?????# #????????????????????# ## | | ????## ??????# #????????????????????# | | ?????###????????# #???????????????????## | | ????????????????# #????????????????#### | | ????????????????# #???????????????## | +----------------------------------------------------+ Best States ------------- Heat Dissipation 25 Energy Generation 18 Energy Capacity 160 Matter Stores 450 Matter Capacity 450 Sight Range 16 Robot Scan Range 14 Terrain Scan Density 10 Armor Coverage 150 Evasion (%) 50 Item Schematics ----------------- None Robot Schematics ------------------ None Fabricated ------------ Nothing Alien Tech Used ----------------- None Achievements -------------- None Challenges ------------ None Game ------ Seed ConcussiveBehemothWings Manual? 0 Play Time 00:34:01 Cumulative 8.5 hours Start 2024.06.26 @ 00:46:50 End 2024.06.26 @ 01:19:15 Sessions 1 Manual Loads 0 Difficulty Rogue Special Mode None Game No. 11 Rogue 11 Adventurer 0 Explorer 0 Win Type - Total 0 Types 0/0/0/0/0/0/0/0/0 Lore% 10 Gallery% 12 Achievement% 12 Wizard Run 0 Options --------- Layout 2 ASCII 0 Keyboard 0 Movement Arrows Keybinds 0 Fullscreen 1 Font 16/SmallcapsGlow Map View 25x24 Zoom Use 62% Tactical HUD 0 Map Filters NONE Filters NONE Steam SD RUN: 1c93bf92-d8c0-406b-aab2-d55e261b3f26